Cogmind - Beta 12 @@@ ROGUE MODE // 2023.05.20 @ 17:02:08 Player: Inkie Result: Self-destructed Performance ------------- Evolutions (6) 3000 Regions Visited (21) 4200 Robots Destroyed (176) 880 Value Destroyed (8683) 8683 Prototype IDs (28) 560 Alien Tech Used (0) 0 Bonus (5839) 5839 TOTAL SCORE: 23162 Bonus ------- High Alert Combat Kills 1282 Follower Combat Kills 3130 Entered Garrisons 400 Network Hubs Disabled 200 Met Warlord at Base 500 MAIN.C Attacked Warlord 500 Built Enhanced Grunts 300 Friendly Fire -473 Cogmind --------- Core Integrity 940/1150 Matter 95/300 Energy 100/100 System Corruption 1% Temperature Cool (30) Movement Rolling (160) Ox4 Location -4/Factory Parts ------- > --- POWER (2) -------- (None) > --- PROPULSION (2) --- Compact Wheel > --- UTILITY (11) ----- Experimental Coolant Injector High-capacity Storage Unit Encrypted Comm Array Experimental Target Analyzer Armor Integrity Analyzer Thermal Barrier System Mapper > --- WEAPON (4) ------- Heavy Wave Gun Hardcell Cannon Hardcell Cannon > --- INVENTORY (20) --- Experimental Myomer Leg Experimental Myomer Leg Compact Wheel Compact Wheel Compact Wheel Improved Signal Interpreter Makeshift Terrain Scanner Shock Maul Peak State ------------ > --- POWER ------------ Vortex Chain Reactor > --- PROPULSION ------- Experimental Myomer Leg Compact Wheel > --- UTILITY ---------- Advanced Power Amplifier Improved Coolant Injector Experimental Coolant Injector High-capacity Storage Unit Encrypted Comm Array Launcher Guidance Computer Experimental Target Analyzer Backup Plating III Thermal Barrier Improved Energy Mantle System Mapper > --- WEAPON ----------- Heavy Wave Gun Vortex Shotgun Vortex Shotgun Enhanced Nova Cannon > --- INVENTORY -------- Experimental Myomer Leg Makeshift Terrain Scanner Hardcell Cannon Hardcell Cannon Shock Maul [Rating: 140] Favorites ----------- Power Quantum Reactor Engine Backup Power III Power Core Light Nuclear Core Reactor Quantum Reactor Propulsion Armored Huge Wheel Treads Light Treads Leg Experimental Myomer Leg Wheel Armored Huge Wheel Hover Unit Antigrav System Flight Unit Electron Diverter Utility Improved Cooling System Device Improved Cooling System Storage Huge Storage Unit Processor Core Analyzer Hackware Hacking Suite Protection Backup Plating III Weapon Advanced Beam Cannon Energy Gun Advanced Variable Charge Gun Energy Cannon Advanced Beam Cannon Ballistic Gun Railgun Ballistic Cannon Heavy Gauss Cannon Launcher Vortex Catalyst Activator Impact Weapon Shock Maul Slashing Weapon Ripper Build | -11 -10 -10 -9 -9 -8 -8 -7 -7 -6 -6 -6 -6 -6 -5 -5 -5 -5 -5 -5 -4 -4 ------- Run | Jun Mat Min Mat Min Mat Gar Fac Gar Fac Ext Cet Arc Hub Fac Was Fac Upp Upp War Pro Fac Slots Evolved 12 | . . . 2 . 2 . 2 . 2 . . . . 2 . . . . . . 2 Power 1 | . . . . . . . 1 . . . . . . . . . . . . . . Propulsion . | . . . . . . . . . . . . . . . . . . . . . . Utility 9 | . . . 2 . 1 . 1 . 1 . . . . 2 . . . . . . 2 Weapon 2 | . . . . . 1 . . . 1 . . . . . . . . . . . . Parts Attached 171 | 6 3 1 10 7 4 8 6 16 14 5 4 5 7 11 8 2 3 1 26 5 19 Power 23 | 1 1 1 . 1 . . 1 5 2 . 3 . . 2 1 . . . 4 . 1 Engine 10 | 1 1 . . 1 . . 1 1 2 . . . . . . . . . 3 . . Core 5 | . . 1 . . . . . 4 . . . . . . . . . . . . . Reactor 8 | . . . . . . . . . . . 3 . . 2 1 . . . 1 . 1 Propulsion 31 | 2 . . 2 2 . 1 . 1 3 . . . 1 2 3 . 1 . 5 . 8 Treads 9 | 2 . . 2 1 . . . 1 1 . . . . . 2 . . . . . . Leg 4 | . . . . . . . . . . . . . . . . . . . 2 . 2 Wheel 14 | . . . . 1 . 1 . . 2 . . . 1 2 1 . . . . . 6 Hover 3 | . . . . . . . . . . . . . . . . . 1 . 2 . . Flight 1 | . . . . . . . . . . . . . . . . . . . 1 . . Utility 59 | 1 2 . 2 2 . 3 2 6 6 1 . 5 4 6 4 . 1 . 9 2 3 Device 35 | . 1 . . 2 . 2 1 4 4 1 . 4 1 2 3 . 1 . 7 1 1 Storage 4 | 1 1 . 1 . . . . . . . . . . . . . . . . . 1 Processor 7 | . . . . . . 1 1 2 . . . . . . . . . . 1 1 1 Hackware 9 | . . . 1 . . . . . 2 . . . 2 3 . . . . 1 . . Protection 4 | . . . . . . . . . . . . 1 1 1 1 . . . . . . Artifact . | . . . . . . . . . . . . . . . . . . . . . . Weapon 58 | 2 . . 6 2 4 4 3 4 3 4 1 . 2 1 . 2 1 1 8 3 7 Energy Gun 15 | 2 . . . . . . . . 2 . 1 . 1 . . 1 1 . 3 . 4 Energy Cannon 15 | . . . 2 1 1 3 1 . 1 3 . . . 1 . . . . 1 1 . Ballistic Gun 10 | . . . 1 . 3 1 1 3 . 1 . . . . . . . . . . . Ballistic Cannon 6 | . . . 2 . . . . . . . . . 1 . . 1 . . . . 2 Launcher 9 | . . . 1 1 . . 1 1 . . . . . . . . . 1 3 1 . Special Weapon . | . . . . . . . . . . . . . . . . . . . . . . Impact Weapon 1 | . . . . . . . . . . . . . . . . . . . . . 1 Slashing Weapon 2 | . . . . . . . . . . . . . . . . . . . 1 1 . Piercing Weapon . | . . . . . . . . . . . . . . . . . . . . . . Special Melee Weapon . | . . . . . . . . . . . . . . . . . . . . . . Unidentified Prototypes 18 | . . . . . . . . . 1 1 1 . . . 1 . . . 12 . 2 Corrupted Parts 1 | . . . . . . . . . . . . 1 . . . . . . . . . System Corruption 6 | . . . . . . . . . . . . 6 . . . . . . . . . Parts Lost 51 | . . . 1 4 . 1 . 3 . 1 1 . 10 10 2 . . 5 . . 13 Power 6 | . . . . 1 . . . . . . . . 2 1 . . . 1 . . 1 Propulsion 13 | . . . . 2 . . . 1 . . . . 1 1 2 . . 1 . . 5 Utility 18 | . . . . 1 . . . 1 . . . . 2 7 . . . 3 . . 4 Weapon 14 | . . . 1 . . 1 . 1 . 1 1 . 5 1 . . . . . . 3 Highest Loss Streak 9 | . . . 1 2 . 1 . 1 . 1 1 . 9 9 2 . . 5 . . 5 To Critical Strikes 1 | . . . . . . . . 1 . . . . . . . . . . . . . Average Slot Usage (%) 86 | . 86 100 86 90 90 99 98 97 92 91 91 88 90 59 31 61 66 49 68 93 81 Engine 5 | . 14 6 . 11 9 9 15 5 11 13 2 . . . 4 11 11 7 10 11 1 Core 2 | . . 7 11 . . . . 9 1 . . . . . . . . . . . . Reactor 3 | . . . . . . . . . . . 10 13 13 6 . . . . . . 4 Treads 4 | . 28 28 22 12 9 6 . 6 1 . . . . . 1 . . . . . . Wheel 5 | . . . . 8 9 11 15 7 6 6 6 6 6 4 1 . . . . . 7 Device 16 | . . 14 11 13 18 18 22 16 19 20 20 14 11 4 2 11 16 10 19 29 26 Storage 5 | . 14 14 11 11 9 9 7 7 6 6 6 6 6 4 . . . . . . 4 Processor 8 | . . . . . . 8 7 11 13 13 13 13 12 4 . . . . 2 10 10 Hackware 6 | . . . 9 11 9 9 7 7 6 6 6 6 14 26 4 . . . 2 5 5 Protection 1 | . . . . . . . . . . . . . . 2 3 11 11 5 4 5 1 Energy Gun 5 | . 28 28 10 . . . . . 4 . 4 6 1 . 5 13 13 13 9 4 10 Energy Cannon 8 | . . . 6 21 . 21 14 15 12 15 7 6 5 1 . . . . 1 2 3 Ballistic Gun 5 | . . . 3 . 27 5 6 6 6 9 13 13 10 . . . . . . . . Naked Turns 27 | . . . . . . . . . . . . . . . 27 . . . . . . Heaviest Build 163 | 11 31 31 94 99 100 103 111 120 133 138 157 157 163 131 69 24 19 19 79 63 134 Greatest Support 50 | 40 40 40 40 40 12 24 24 24 28 28 28 28 28 28 35 16 19 19 50 50 50 Greatest Overweight (x) 11 | . . . 2 8 8 8 4 9 11 4 5 5 8 5 4 1 1 1 4 1 10 Average Overweight (x) 3 | . . . . 7 8 6 4 8 5 4 4 5 5 2 . . . . . . 3 Largest Inventory Capacity 25 | 8 15 15 25 25 25 25 25 25 25 25 25 25 25 25 5 5 5 5 5 5 20 Average Capacity 20 | 6 12 15 19 25 25 25 25 25 25 25 25 25 25 22 5 5 5 5 5 5 18 Most Carried 25 | 1 7 8 21 25 22 25 25 25 25 25 25 25 25 22 5 5 5 5 5 5 12 Average Carried 18 | . 5 7 14 21 22 23 24 24 22 23 24 24 24 16 4 4 4 4 4 4 8 Final Capacity 25 | 8 15 15 25 25 25 25 25 25 25 25 25 25 25 5 5 5 5 5 5 5 20 Final Carried 25 | 1 7 8 21 23 22 25 25 25 22 25 25 25 22 4 5 5 5 5 5 5 8 Class Distribution -------------------- 26% | Scavenger-Mutant 20% | Mutant 15% | Scavenger-Gunner 11% | Hacker-Mutant 10% | Gunner 5% | Commander-Gunner Dominant Class ---------------- Mutant | -10/Materials Mutant | -10/Mines Scavenger-Mutant | -9/Materials Mutant | -9/Mines Gunner | -8/Materials Gunner | -8/Garrison Mutant | -7/Factory Scavenger-Mutant | -7/Garrison Scavenger-Gunner | -6/Factory Commander-Gunner | -6/Extension Scavenger-Gunner | -6/Cetus Scavenger-Mutant | -6/Archives Scavenger-Gunner | -6/Hub_04(d) Hacker-Mutant | -5/Factory Mutant | -5/Waste Tank | -5/Factory Mutant | -5/Upper Caves Mutant | -5/Upper Caves Commander-Mutant | -5/Warlord Hacker-Mutant | -4/Proximity Caves Hacker-Mutant | -4/Factory Resources | -11 -10 -10 -9 -9 -8 -8 -7 -7 -6 -6 -6 -6 -6 -5 -5 -5 -5 -5 -5 -4 -4 ----------- Run | Jun Mat Min Mat Min Mat Gar Fac Gar Fac Ext Cet Arc Hub Fac Was Fac Upp Upp War Pro Fac Matter Collected 3055 | 199 81 20 158 171 . 195 13 464 195 150 80 176 264 . 146 17 61 107 268 50 240 Remotely . | . . . . . . . . . . . . . . . . . . . . . . Salvage Created 7799 | . 117 . 799 368 . 838 60 983 381 673 109 535 347 88 . . 59 212 . . 2230 Parts 325 | . 9 . 41 22 . 36 7 49 15 25 1 22 22 3 . . 3 7 . 8 55 Haulers Intercepted 6 | . . . 3 . . . . . . . . . . . . . . . . . 3 Recyclers Shooed 5 | . . . 1 . . . . . . . . . . . . . . . . . 4 Parts Field Recycled . | . . . . . . . . . . . . . . . . . . . . . . Retrieved Matter . | . . . . . . . . . . . . . . . . . . . . . . Parts Self-Destructed 12 | . . . . . . . . . . . . . . . . . 2 2 . 8 . Prevented . | . . . . . . . . . . . . . . . . . . . . . . Kills | -11 -10 -10 -9 -9 -8 -8 -7 -7 -6 -6 -6 -6 -6 -5 -5 -5 -5 -5 -5 -4 -4 ------- Run | Jun Mat Min Mat Min Mat Gar Fac Gar Fac Ext Cet Arc Hub Fac Was Fac Upp Upp War Pro Fac Combat Hostiles Destroyed 128 | . 2 . 8 13 . 12 4 20 6 10 . 3 6 2 . . 1 9 . 7 25 Guns 38 | . 2 . 3 . . 3 . 8 3 4 . 2 1 . . . 1 . . . 11 Cannons 51 | . . . 3 7 . 9 . 11 3 6 . 1 5 . . . . . . . 6 AOE 37 | . . . 2 5 . . 4 . . . . . . 2 . . . 9 . 7 8 Classes Destroyed 21 | . 2 . 5 2 . 2 . 5 2 1 . . 1 . . . . . . 1 . Worker 7 | . . . 1 . . . . . . . . . 1 . . . . . . . 5 Builder 2 | . . . . . . . . . . . . . 1 . . . . . . . 1 Tunneler 2 | . . . . 2 . . . . . . . . . . . . . . . . . Hauler 6 | . . . 3 . . . . . . . . . . . . . . . . . 3 Recycler 12 | . . . 4 . . . . . . 1 . . . . . . . . . . 7 Mechanic 1 | . . . . . . . . . 1 . . . . . . . . . . . . Operator 14 | . 1 . 1 . . . . . . 1 . 9 2 . . . . . . . . Drone 2 | . . . . . . . . . . . . . . . . . . . . 2 . Watcher 2 | . . . 1 . . . . . . . 1 . . . . . . . . . . Swarmer 24 | . . . . 6 . . 4 3 . 2 . . . . . . . 4 . 5 . Cutter 5 | . . . . . . . . 3 . . . . . . . . . . . . 2 Grunt 50 | . 2 . 4 7 . 5 . 6 1 3 . . 2 2 . . . 4 . . 14 Brawler 3 | . . . . . . 2 . 1 . . . . . . . . . . . . . Duelist 3 | . . . . . . . . 1 1 . . . . . . . . . . . 1 Protector 1 | . . . . . . . . 1 . . . . . . . . . . . . . Sentry 22 | . . . 4 . . 3 . 3 1 4 . 3 2 . . . . . . . 2 Demolisher 2 | . . . . . . . . 1 1 . . . . . . . . . . . . Specialist 4 | . . . . . . 2 . . 1 . . . 1 . . . . . . . . Hunter 6 | . . . . . . . . 1 . . . . 1 . . . . . . . 4 Programmer 5 | . . . . . . . . . 1 . . . . . . . 1 1 . . 2 Behemoth 1 | . . . . . . . . . . 1 . . . . . . . . . . . Butcher 2 | . . . . . . . . . . . 2 . . . . . . . . . . Best Kill Streak 9 | . 2 . 6 8 . 3 4 4 4 2 1 4 3 2 . . 1 9 . 5 6 Combat Bots Only 9 | . 2 . 3 6 . 3 4 4 4 2 . 3 2 2 . . 1 9 . 5 4 Max Kills in Single Turn 5 | . 1 . 1 3 . 2 3 2 2 2 2 1 2 2 . . 1 3 . 5 3 Gunslinging 1 | . . . . . . . . . . . . . . . . . . . . . 1 Exploded 5 | . . . 1 2 . . 3 . . . . . . 2 . . . 3 . 5 2 Melee . | . . . . . . . . . . . . . . . . . . . . . . Uniques/NPCs Destroyed . | . . . . . . . . . . . . . . . . . . . . . . Combat | -11 -10 -10 -9 -9 -8 -8 -7 -7 -6 -6 -6 -6 -6 -5 -5 -5 -5 -5 -5 -4 -4 -------- Run | Jun Mat Min Mat Min Mat Gar Fac Gar Fac Ext Cet Arc Hub Fac Was Fac Upp Upp War Pro Fac Damage Taken 8719 | . 119 . 549 432 . 421 111 545 300 447 189 31 1660 1338 102 40 95 573 51 15 1701 Core 1549 | . 14 . 100 51 . 36 . 45 26 82 37 . 243 416 89 . . 183 17 . 210 Absorbed by Shields 1965 | . . . . . . 27 43 288 204 524 79 16 108 150 . . . . 17 13 496 Regen/Repaired (Parts) 437 | . . . . . . . 100 . 177 . . . . 82 . . . . 78 . . Core Remaining (%) 75 | 100 . 94 . 62 . 93 . 93 . . . . 54 . . . . . . 29 . Volleys Fired 395 | . 8 . 44 20 . 54 4 60 10 23 5 43 16 5 . . 5 7 1 6 84 Largest 4 | . 2 . 2 2 . 3 1 3 4 4 4 4 4 1 . . 3 3 1 1 4 Hottest 328 | . 80 . 136 136 . 204 33 171 259 271 233 245 271 88 . . 149 149 120 120 328 Shots Fired 890 | . 16 . 84 36 . 138 4 153 34 67 17 75 50 5 . . 11 11 1 6 182 Gun 371 | . 16 . 38 . . 25 . 36 14 22 10 68 27 . . . 11 6 . . 98 Cannon 494 | . . . 44 32 . 113 . 116 20 45 7 7 23 5 . . . . 1 2 79 Launcher 25 | . . . 2 4 . . 4 1 . . . . . . . . . 5 . 4 5 Special . | . . . . . . . . . . . . . . . . . . . . . . Kinetic 241 | . . . 29 . . 25 . 36 10 22 10 28 39 . . . . . . . 42 Thermal 553 | . 8 . 43 32 . 113 . 116 24 39 7 47 11 . . . 11 6 1 2 93 Explosive 16 | . . . 2 4 . . 4 1 . . . . . . . . . 5 . . . Electromagnetic 29 | . 8 . 10 . . . . . . 6 . . . 5 . . . . . . . Entropic 51 | . . . . . . . . . . . . . . . . . . . . 4 47 Robot Hit Streak 21 | . 10 . 14 9 . 17 . 21 11 10 8 8 8 3 . . 4 7 . 3 7 Robot Miss Streak 8 | . 1 . 3 1 . 3 . 3 2 4 3 4 6 2 . . 1 1 . . 8 Penetration Max 1 | . . . . . . . . . 1 1 1 . 1 . . . . . . . . Secondary Targets 2 | . . . . . . . . . . . . . . . . . . . . . 2 Max Gunslinging Chain 1 | . . . . . . . . . . . . . . . . . . . . . 1 Shots Hit Robots 516 | . 12 . 56 26 . 66 . 79 18 41 13 42 31 2 . . 7 5 . 1 117 Core Hits 323 | . 6 . 22 17 . 27 7 44 12 26 13 27 20 3 . . 3 15 . 5 76 Critical Kills 4 | . . . . . . . . 1 1 1 . 1 . . . . . . . . . Critical Parts Destroyed 4 | . . . . . . . . . . . . . . . . . . . . . 4 Critical Strikes 23 | . . . 1 . . . . 1 1 1 . 2 1 . . . . . . . 16 Burn 5 | . . . . . . . . . . . . . . . . . . . . . 5 Meltdown 2 | . . . . . . . . 1 . 1 . . . . . . . . . . . Destroy 3 | . . . . . . . . . 1 . . 2 . . . . . . . . . Blast 9 | . . . 1 . . . . . . . . . 1 . . . . . . . 7 Detonate 4 | . . . . . . . . . . . . . . . . . . . . . 4 Melee Attacks 5 | . . . . . . . . . . . . . . . . . . . . 4 1 Impact . | . . . . . . . . . . . . . . . . . . . . . . Slashing 5 | . . . . . . . . . . . . . . . . . . . . 4 1 Piercing . | . . . . . . . . . . . . . . . . . . . . . . Sneak Attacks 1 | . . . . . . . . . . . . . . . . . . . . . 1 Combat Hostiles . | . . . . . . . . . . . . . . . . . . . . . . Follow-up Attacks . | . . . . . . . . . . . . . . . . . . . . . . Damage Inflicted 20297 | . 150 . 1197 977 . 1306 296 1904 495 1232 552 1293 1050 346 . . 112 980 . 1185 7222 Guns 6689 | . 150 . 322 . . 197 . 508 231 397 263 1131 515 . . . 112 91 . . 2772 Cannons 7598 | . . . 621 514 . 1109 . 1327 264 835 289 162 535 105 . . . . . . 1837 Explosions 5935 | . . . 254 463 . . 296 69 . . . . . 232 . . . 889 . 1185 2547 Melee 66 | . . . . . . . . . . . . . . . . . . . . . 66 Ramming 9 | . . . . . . . . . . . . . . 9 . . . . . . . Kinetic 4209 | . . . 430 . . 197 . 508 206 397 263 389 840 . . . . . . . 979 Thermal 8564 | . 43 . 418 514 . 1109 . 1327 289 715 289 904 210 232 . . 112 91 . . 2311 Explosive 1947 | . . . 230 463 . . 296 69 . . . . . . . . . 889 . . . Electromagnetic 703 | . 107 . 119 . . . . . . 120 . . . 105 . . . . . . 252 Impact . | . . . . . . . . . . . . . . . . . . . . . . Slashing 66 | . . . . . . . . . . . . . . . . . . . . . 66 Piercing . | . . . . . . . . . . . . . . . . . . . . . . Entropic 4799 | . . . . . . . . . . . . . . . . . . . . 1185 3614 Highest Corruption 16 | . . . . . . . . 2 . . . 6 7 12 12 12 13 16 16 . 1 Average Corruption 5 | . . . . . . . . 1 . . . 3 3 7 12 12 12 14 16 . 1 Corruption Purged 6 | . . . . . . . . . . . . 6 . . . . . . . . . Corruption Blocked 1 | . . . . . . . . . . . . . . . . . . . 1 . . Effects 63 | . . . . . . . . 14 . . . 2 . 3 10 8 10 13 . . 3 Message Errors 15 | . . . . . . . . 1 . . . . . 2 2 2 4 4 . . . Matter Fused 18 | . . . . . . . . 7 . . . . . . 2 1 3 3 . . 2 Heat Flow Errors 9 | . . . . . . . . 2 . . . 1 . . . 3 1 2 . . . Energy Discharges 7 | . . . . . . . . 2 . . . . . 1 2 2 . . . . . Data Loss (minor) 6 | . . . . . . . . 1 . . . . . . 1 . 1 2 . . 1 Data Loss (major) 4 | . . . . . . . . . . . . 1 . . 1 . 1 1 . . . Misfires 1 | . . . . . . . . 1 . . . . . . . . . . . . . Alerts 1 | . . . . . . . . . . . . . . . 1 . . . . . . Misdirections 2 | . . . . . . . . . . . . . . . 1 . . 1 . . . Overload Shots . | . . . . . . . . . . . . . . . . . . . . . . Overflow Damage 640 | . . . 16 13 . . 15 . . 14 . . . 42 . . . 5 . 194 341 Projectiles 200 | . . . 16 . . . . . . 14 . . . 29 . . . . . . 141 Explosions 440 | . . . . 13 . . 15 . . . . . . 13 . . . 5 . 194 200 Melee . | . . . . . . . . . . . . . . . . . . . . . . Knockbacks 16 | . . . 2 . . . . . . . . . 2 . . . . . . . 12 Impact . | . . . . . . . . . . . . . . . . . . . . . . Kinetic 16 | . . . 2 . . . . . . . . . 2 . . . . . . . 12 Secondary . | . . . . . . . . . . . . . . . . . . . . . . Self-Inflicted Damage 213 | . . . 19 28 . . 35 12 . . . . . 4 . . . 43 . . 72 Shots 8 | . . . 1 1 . . 2 1 . . . . . . . . . 1 . . 2 Rammed 1 | . . . . . . . . . . . . . . 1 . . . . . . . Targets Rammed 1 | . . . . . . . . . . . . . . 1 . . . . . . . Kicked . | . . . . . . . . . . . . . . . . . . . . . . Crushed . | . . . . . . . . . . . . . . . . . . . . . . Highest Temperature 276 | . 204 . 156 268 . 15 . 185 138 48 1 96 276 168 2 187 201 238 66 116 199 Average Temperature 83 | . 98 . 52 113 . 7 . 38 42 19 1 16 80 72 2 100 101 123 40 64 108 Received Heat Transfer 2122 | . 69 . 261 195 . 153 . 139 58 55 25 . 418 152 9 18 . 18 . . 552 Effects 1 | . . . . . . . . . . . . . 1 . . . . . . . . Energy Bleed 1 | . . . . . . . . . . . . . 1 . . . . . . . . Siege Activations . | . . . . . . . . . . . . . . . . . . . . . . Robots Corrupted . | . . . . . . . . . . . . . . . . . . . . . . Combat Hostiles . | . . . . . . . . . . . . . . . . . . . . . . Parts Fried 1 | . . . . . . . . . . 1 . . . . . . . . . . . Impact Corruptions . | . . . . . . . . . . . . . . . . . . . . . . Robots Melted 3 | . . . . 1 . . . 1 . 1 . . . . . . . . . . . Combat Hostiles 2 | . . . . 1 . . . 1 . . . . . . . . . . . . . Parts Melted 18 | . . . . 3 . 2 . 2 1 3 . . 1 . . . 3 . . . 3 Heat Transferred 12691 | . 100 . 756 925 . 1998 . 2350 481 1059 374 1125 274 150 . . 259 185 . . 2655 Parts Sabotaged . | . . . . . . . . . . . . . . . . . . . . . . Parts Stolen . | . . . . . . . . . . . . . . . . . . . . . . Parts Stripped . | . . . . . . . . . . . . . . . . . . . . . . Power Chain Reactions 1 | . . . 1 . . . . . . . . . . . . . . . . . . Missiles Intercepted . | . . . . . . . . . . . . . . . . . . . . . . Alert | -11 -10 -10 -9 -9 -8 -8 -7 -7 -6 -6 -6 -6 -6 -5 -5 -5 -5 -5 -5 -4 -4 ------- Run | Jun Mat Min Mat Min Mat Gar Fac Gar Fac Ext Cet Arc Hub Fac Was Fac Upp Upp War Pro Fac Peak Influence 1493 | . 115 74 199 309 65 800 551 1493 832 472 265 465 899 249 76 343 . . . . 1030 Initial 783 | . . 44 35 64 65 42 420 392 783 407 216 106 . 249 31 53 . . . . 69 Average 357 | . 33 62 86 216 65 374 459 889 750 219 202 100 457 91 56 145 . . . . 650 Maximum Alert Level 4 | . . . . 1 . 3 2 4 3 2 1 2 3 1 . 1 . . . . 3 Low Security (%) 42 | 100 100 100 100 42 100 13 . . . 32 27 74 21 85 100 61 . . . . 12 Level 1 19 | . . . . 57 . 48 . 1 . 61 72 18 17 14 . 38 . . . . 2 Level 2 15 | . . . . . . 27 100 19 19 6 . 6 42 . . . . . . . 23 Level 3 19 | . . . . . . 10 . 59 80 . . . 18 . . . . . . . 60 Level 4 2 | . . . . . . . . 19 . . . . . . . . . . . . . Level 5 . | . . . . . . . . . . . . . . . . . . . . . . High Security . | . . . . . . . . . . . . . . . . . . . . . . Max Security . | . . . . . . . . . . . . . . . . . . . . . . Squads Dispatched 32 | . . . 1 1 . . 1 . 3 2 . . 10 4 . 1 . . . . 9 Investigation 9 | . . . . 1 . . 1 . . . . . 5 2 . . . . . . . Extermination 4 | . . . . . . . . . 2 . . . . 1 . . . . . . 1 Reinforcement 14 | . . . 1 . . . . . . 2 . . 5 1 . 1 . . . . 4 Assault 2 | . . . . . . . . . 1 . . . . . . . . . . . 1 Garrison 3 | . . . . . . . . . . . . . . . . . . . . . 3 Intercept . | . . . . . . . . . . . . . . . . . . . . . . Searches Triggered . | . . . . . . . . . . . . . . . . . . . . . . Construction Impeded 3 | . . . . . . . . . . 1 . . . . . . . . . . 2 Haulers Reinforced 1 | . . . . . . . . . . . . . . . . 1 . . . . . Active Scanning Responses . | . . . . . . . . . . . . . . . . . . . . . . Cargo Convoy Interrupts . | . . . . . . . . . . . . . . . . . . . . . . Stealth | -11 -10 -10 -9 -9 -8 -8 -7 -7 -6 -6 -6 -6 -6 -5 -5 -5 -5 -5 -5 -4 -4 --------- Run | Jun Mat Min Mat Min Mat Gar Fac Gar Fac Ext Cet Arc Hub Fac Was Fac Upp Upp War Pro Fac Distress Signals 9 | . . . 3 . . . . . . . 1 . . . . . . . 2 . 3 Communications Jammed . | . . . . . . . . . . . . . . . . . . . . . . Distress Signals . | . . . . . . . . . . . . . . . . . . . . . . Times Spotted 298 | . 7 1 17 13 . 19 4 23 8 31 7 27 35 17 6 8 1 9 8 5 52 Peak Tracking Total 11 | . 3 2 3 6 . 3 4 4 8 5 5 1 11 9 5 7 1 9 9 5 7 Tactical Retreats 15 | . 1 1 . . . . . . 1 3 . . . 3 1 2 . . . . 3 Traps | -11 -10 -10 -9 -9 -8 -8 -7 -7 -6 -6 -6 -6 -6 -5 -5 -5 -5 -5 -5 -4 -4 ------- Run | Jun Mat Min Mat Min Mat Gar Fac Gar Fac Ext Cet Arc Hub Fac Was Fac Upp Upp War Pro Fac Traps Triggered 18 | . . . . . . 5 . 9 . 3 . . . 1 . . . . . . . Indirectly . | . . . . . . . . . . . . . . . . . . . . . . Trap Hack Attempts . | . . . . . . . . . . . . . . . . . . . . . . Triggered . | . . . . . . . . . . . . . . . . . . . . . . Disarmed . | . . . . . . . . . . . . . . . . . . . . . . Reprogrammed . | . . . . . . . . . . . . . . . . . . . . . . Reused . | . . . . . . . . . . . . . . . . . . . . . . Traps Extracted . | . . . . . . . . . . . . . . . . . . . . . . Installed . | . . . . . . . . . . . . . . . . . . . . . . Triggered 9 | . . . . . . . . . . . . . . . . . . . 9 . . Machines | -11 -10 -10 -9 -9 -8 -8 -7 -7 -6 -6 -6 -6 -6 -5 -5 -5 -5 -5 -5 -4 -4 ---------- Run | Jun Mat Min Mat Min Mat Gar Fac Gar Fac Ext Cet Arc Hub Fac Was Fac Upp Upp War Pro Fac Machines Disabled 38 | . . . 2 . . 6 . 5 . . 1 4 3 2 . 3 . . 1 . 11 Max in Single Turn 4 | . . . 1 . . 1 . 1 . . . 1 1 2 . . . . 1 . 4 Garrison Access 2 | . . . . . . . . . . . . . 1 . . . . . . . 1 Garrison Relay 9 | . . . . . . 5 . 4 . . . . . . . . . . . . . Network Hub 1 | . . . . . . . . . . . . . 1 . . . . . . . . Machines Repaired 1 | . . . . . . . . . . . . . 1 . . . . . . . . Machines Sabotaged . | . . . . . . . . . . . . . . . . . . . . . . Overloaded Fab Kills . | . . . . . . . . . . . . . . . . . . . . . . Hacking | -11 -10 -10 -9 -9 -8 -8 -7 -7 -6 -6 -6 -6 -6 -5 -5 -5 -5 -5 -5 -4 -4 --------- Run | Jun Mat Min Mat Min Mat Gar Fac Gar Fac Ext Cet Arc Hub Fac Was Fac Upp Upp War Pro Fac Machines Accessed 47 | . 2 1 4 1 2 1 4 4 4 7 . . 8 6 . 1 . . 1 . 1 Terminals 34 | . 2 1 4 . 1 1 1 4 2 7 . . 7 3 . 1 . . . . . Fabricators 2 | . . . . . . . . . 1 . . . . 1 . . . . . . . Repair Stations 3 | . . . . . . . 2 . . . . . . 1 . . . . . . . Recycling Units 1 | . . . . . . . . . 1 . . . . . . . . . . . . Scanalyzers 1 | . . . . . . . . . . . . . . 1 . . . . . . . Garrison Access 4 | . . . . . 1 . 1 . . . . . 1 . . . . . . . 1 Total Hacks 128 | . 4 4 14 1 4 1 10 13 12 13 . . 20 25 . 5 . . 1 . 1 Successful 70 | . 1 3 6 1 2 . 5 3 7 11 . . 11 17 . 1 . . 1 . 1 Failed 58 | . 3 1 8 . 2 1 5 10 5 2 . . 9 8 . 4 . . . . . Catastrophic 6 | . 1 . . . . 1 1 1 1 . . . 1 . . . . . . . . Database Lockouts . | . . . . . . . . . . . . . . . . . . . . . . Manual 78 | . 4 4 14 . 3 1 5 4 5 4 1 . 19 11 . 3 . . . . . Terminals 98 | . 4 4 14 . 3 1 3 13 4 13 . . 19 15 . 5 . . . . . Fabricators 8 | . . . . . . . . . 6 . . . . 2 . . . . . . . Repair Stations 7 | . . . . . . . 4 . . . . . . 3 . . . . . . . Recycling Units 2 | . . . . . . . . . 2 . . . . . . . . . . . . Scanalyzers 5 | . . . . . . . . . . . . . . 5 . . . . . . . Garrison Access 6 | . . . . . 1 . 3 . . . . . 1 . . . . . . . 1 Terminal Hacks 34 | . . 3 4 1 . . . 3 1 9 . . 5 7 . . . . 1 . . Robot Schematic 1 | . . . 1 . . . . . . . . . . . . . . . . . . Prototype ID Bank 6 | . . 3 3 . . . . . . . . . . . . . . . . . . Open Door 7 | . . . . 1 . . . 1 . 4 . . . . . . . . 1 . . Level Access Points 1 | . . . . . . . . . . . . . 1 . . . . . . . . Branch Access Points 1 | . . . . . . . . . 1 . . . . . . . . . . . . Emergency Access Points 1 | . . . . . . . . 1 . . . . . . . . . . . . . Terminal Index 1 | . . . . . . . . . . . . . . 1 . . . . . . . Fabricator Index 1 | . . . . . . . . . . . . . . 1 . . . . . . . Alert Level 2 | . . . . . . . . . . 1 . . 1 . . . . . . . . Unreport Threat 10 | . . . . . . . . . . 4 . . 3 3 . . . . . . . Recall Investigation 1 | . . . . . . . . . . . . . . 1 . . . . . . . Hauler Manifests 1 | . . . . . . . . . . . . . . 1 . . . . . . . Patrol Navigation 1 | . . . . . . . . 1 . . . . . . . . . . . . . Fabricator Hacks 5 | . . . . . . . . . 4 . . . . 1 . . . . . . . Load Schematic 3 | . . . . . . . . . 2 . . . . 1 . . . . . . . Build 2 | . . . . . . . . . 2 . . . . . . . . . . . . Repair Station Hacks 5 | . . . . . . . 3 . . . . . . 2 . . . . . . . Scan Component 3 | . . . . . . . 2 . . . . . . 1 . . . . . . . Repair 2 | . . . . . . . 1 . . . . . . 1 . . . . . . . Recycling Unit Hacks . | . . . . . . . . . . . . . . . . . . . . . . Scanalyzer 4 | . . . . . . . . . . . . . . 4 . . . . . . . Insert Component 1 | . . . . . . . . . . . . . . 1 . . . . . . . Analyze 3 | . . . . . . . . . . . . . . 3 . . . . . . . Garrison Access Hacks 4 | . . . . . 1 . 1 . . . . . 1 . . . . . . . 1 Unlock Access 2 | . . . . . 1 . 1 . . . . . . . . . . . . . . Seal Access 2 | . . . . . . . . . . . . . 1 . . . . . . . 1 Unauthorized Hacks 18 | . 1 . 2 . 1 . 1 . 2 2 . . 5 3 . 1 . . . . . Terminals 16 | . 1 . 2 . 1 . 1 . 1 2 . . 5 2 . 1 . . . . . Botnet 9 | . . . 1 . 1 . 1 . 1 2 . . 1 1 . 1 . . . . . Operators 3 | . 1 . 1 . . . . . . . . . . 1 . . . . . . . Sabotage 4 | . . . . . . . . . . . . . 4 . . . . . . . . Fabricators 1 | . . . . . . . . . . . . . . 1 . . . . . . . Recompile 1 | . . . . . . . . . . . . . . 1 . . . . . . . Repair Stations . | . . . . . . . . . . . . . . . . . . . . . . Recycling Units 1 | . . . . . . . . . 1 . . . . . . . . . . . . Recyclers 1 | . . . . . . . . . 1 . . . . . . . . . . . . Scanalyzers . | . . . . . . . . . . . . . . . . . . . . . . Garrison Access . | . . . . . . . . . . . . . . . . . . . . . . Data Cores Recovered 1 | . 1 . . . . . . . . . . . . . . . . . . . . Used 1 | . 1 . . . . . . . . . . . . . . . . . . . . Hacking Detections 34 | . 2 1 3 . 2 1 4 4 4 3 . . 5 4 . 1 . . . . . Full Trace Events 5 | . . . . . . . 1 2 . . . . 1 1 . . . . . . . Feedback Events 1 | . . . . . . . . 1 . . . . . . . . . . . . . Corruption 1 | . . . . . . . . 1 . . . . . . . . . . . . . Feedback Blocked . | . . . . . . . . . . . . . . . . . . . . . . Robot Schematics Acquired 1 | . . . 1 . . . . . . . . . . . . . . . . . . Robots Built 2 | . . . . . . . . . 2 . . . . . . . . . . . . Authchips 2 | . . . . . . . . . 2 . . . . . . . . . . . . Time 162 | . . . . . . . . . 162 . . . . . . . . . . . . Total Robot Build Rating 2 | . . . . . . . . . 2 . . . . . . . . . . . . Part Schematics Acquired 1 | . . . . . . . . . . . . . . 1 . . . . . . . Parts Built . | . . . . . . . . . . . . . . . . . . . . . . Authchips . | . . . . . . . . . . . . . . . . . . . . . . Time . | . . . . . . . . . . . . . . . . . . . . . . Total Part Build Rating . | . . . . . . . . . . . . . . . . . . . . . . Parts Repaired 2 | . . . . . . . 1 . . . . . . 1 . . . . . . . Time 45 | . . . . . . . 17 . . . . . . 28 . . . . . . . Parts Recycled . | . . . . . . . . . . . . . . . . . . . . . . Recycled Matter . | . . . . . . . . . . . . . . . . . . . . . . Retrieved Matter . | . . . . . . . . . . . . . . . . . . . . . . Retrieved Components . | . . . . . . . . . . . . . . . . . . . . . . Parts Scanalyzed 1 | . . . . . . . . . . . . . . 1 . . . . . . . Part Schematics Acquired 1 | . . . . . . . . . . . . . . 1 . . . . . . . Parts Damaged 1 | . . . . . . . . . . . . . . 1 . . . . . . . Bothacking | -11 -10 -10 -9 -9 -8 -8 -7 -7 -6 -6 -6 -6 -6 -5 -5 -5 -5 -5 -5 -4 -4 ------------ Run | Jun Mat Min Mat Min Mat Gar Fac Gar Fac Ext Cet Arc Hub Fac Was Fac Upp Upp War Pro Fac Used RIF Installer . | . . . . . . . . . . . . . . . . . . . . . . Robots Hacked . | . . . . . . . . . . . . . . . . . . . . . . Non-combat . | . . . . . . . . . . . . . . . . . . . . . . Combat . | . . . . . . . . . . . . . . . . . . . . . . Robot Hacks Applied . | . . . . . . . . . . . . . . . . . . . . . . Relay Couplers Released 41 | . . . . . . 21 . 17 . . . . 3 . . . . . . . . Machine Destruction 41 | . . . . . . 21 . 17 . . . . 3 . . . . . . . . Fabnet Peak Effective % . | . . . . . . . . . . . . . . . . . . . . . . Robots Rewired 29 | . . . . . . 4 . 3 . 17 . . . . . . . . 5 . . Allies Hacked 2 | . . . . . . . . . . . . . . . . . . . 2 . . Hacks Repelled . | . . . . . . . . . . . . . . . . . . . . . . Allies | -11 -10 -10 -9 -9 -8 -8 -7 -7 -6 -6 -6 -6 -6 -5 -5 -5 -5 -5 -5 -4 -4 -------- Run | Jun Mat Min Mat Min Mat Gar Fac Gar Fac Ext Cet Arc Hub Fac Was Fac Upp Upp War Pro Fac Total Allies 61 | . . . . . . 4 . 5 2 21 5 . . . 19 . . . 5 . . Largest Group 19 | . . . . . . 4 . 3 5 15 11 4 4 . 19 10 . . 5 . . Highest-Rated Group 702 | . . . . . . 84 . 142 93 521 391 384 377 . 702 414 . . 213 . . Highest-Rated Ally 159 | . . . . . . 21 . 80 25 159 143 96 96 . 50 46 . . 49 . . Total Orders 4 | . . . . . . . . . 1 . 1 2 . . . . . . . . . STAY 2 | . . . . . . . . . . . 1 1 . . . . . . . . . FOLLOW 1 | . . . . . . . . . . . . 1 . . . . . . . . . AID 1 | . . . . . . . . . 1 . . . . . . . . . . . . Ally Attacks 513 | . . . . . . 31 . 18 15 139 37 9 84 . 105 45 . . 30 . . Total Damage 18098 | . . . . . . 777 . 682 485 3446 739 299 3249 . 5738 1301 . . 1382 . . Kills 95 | . . . . . . 7 . 5 1 17 8 1 25 . 14 8 . . 9 . . Allies Corrupted 3 | . . . . . . 1 . . . . . . 1 . . . . . 1 . . Allies Melted 4 | . . . . . . . . . 1 . . . . . . . . . 3 . . Intel | -11 -10 -10 -9 -9 -8 -8 -7 -7 -6 -6 -6 -6 -6 -5 -5 -5 -5 -5 -5 -4 -4 ------- Run | Jun Mat Min Mat Min Mat Gar Fac Gar Fac Ext Cet Arc Hub Fac Was Fac Upp Upp War Pro Fac Robot Analysis Total . | . . . . . . . . . . . . . . . . . . . . . . Derelict Logs Recovered 5 | . . 1 . 1 . . . . . . . . . . . . 2 1 . . . Drone Launches . | . . . . . . . . . . . . . . . . . . . . . . Drone Recoveries . | . . . . . . . . . . . . . . . . . . . . . . Exploration | -11 -10 -10 -9 -9 -8 -8 -7 -7 -6 -6 -6 -6 -6 -5 -5 -5 -5 -5 -5 -4 -4 ------------- Run | Jun Mat Min Mat Min Mat Gar Fac Gar Fac Ext Cet Arc Hub Fac Was Fac Upp Upp War Pro Fac Turns Passed 16404 | 86 300 335 980 522 56 1351 314 2012 768 1094 327 3077 853 445 283 218 263 322 1145 606 1047 Spaces Moved 7665 | 51 159 194 397 204 24 568 186 754 407 502 129 399 437 310 374 203 326 393 860 336 452 Core 360 | 4 . . . . . . . . . . . . . 98 258 . . . . . . Treads 823 | 47 159 194 397 24 . . . . . . . . . . 2 . . . . . . Legs 613 | . . . . . . . . . . . . . . . . . . . 200 336 77 Wheels 4173 | . . . . 180 24 568 186 754 407 502 129 399 437 212 . . . . . . 375 Hover 1696 | . . . . . . . . . . . . . . . 114 203 326 393 660 . . Flight . | . . . . . . . . . . . . . . . . . . . . . . Fastest Speed 50 | 50 160 160 160 210 210 150 150 150 155 160 160 175 160 50 50 76 66 60 56 90 130 Average Speed 152 | 151 160 160 205 222 210 187 150 221 174 160 171 175 175 124 61 103 72 76 98 169 162 Slowest Speed 396 | 160 160 160 320 320 210 210 150 225 255 160 175 175 250 190 396 156 156 120 300 170 250 Overloaded Moves . | . . . . . . . . . . . . . . . . . . . . . . Propulsion Burnouts . | . . . . . . . . . . . . . . . . . . . . . . Robots Hopped 4 | . . . . . . . . . . . . . . . 4 . . . . . . Cave-ins Triggered . | . . . . . . . . . . . . . . . . . . . . . . Exploration Rate (%) 44 | 4 33 51 42 59 7 59 5 84 9 74 48 90 51 13 91 7 59 49 92 37 15 Regions Visited 21 Branch Regions 10 Pre-discovered Areas 2 | . . 1 . . . . . . . . . . . . . . 1 . . . . Known Exits Taken 5 | . . . . . 1 . 1 . 1 . . . 1 . . . 1 . . . . Unknown Exits Taken 12 | 1 1 1 1 1 . . . . . 1 1 1 . . . 1 . 1 1 1 . Scrap Searched 6 | . . . . . . . . . . . . . . . . . 1 1 . 4 . Spaces Dug 186 | . . . . 7 . . 2 . . . . . . . . . . 18 . 107 52 Terrain Destroyed 508 | . . . 16 29 . . 18 11 9 5 2 8 7 3 . . . 55 . 160 185 Melee 4 | . . . . . . . . . . . . . . . . . . . . 4 . Projectile 90 | . . . 1 . . . . 5 9 5 2 8 7 . . . . . . 2 51 AOE 414 | . . . 15 29 . . 18 6 . . . . . 3 . . . 55 . 154 134 Terrain Rammed . | . . . . . . . . . . . . . . . . . . . . . . Walls Destroyed . | . . . . . . . . . . . . . . . . . . . . . . Machines Disabled . | . . . . . . . . . . . . . . . . . . . . . . Actions | -11 -10 -10 -9 -9 -8 -8 -7 -7 -6 -6 -6 -6 -6 -5 -5 -5 -5 -5 -5 -4 -4 --------- Run | Jun Mat Min Mat Min Mat Gar Fac Gar Fac Ext Cet Arc Hub Fac Was Fac Upp Upp War Pro Fac Total 11607 | 57 188 218 482 234 28 739 214 973 442 740 222 2713 481 366 423 211 340 406 1160 360 610 Wait 2923 | . 13 24 8 . . 19 17 44 4 101 81 2260 18 29 39 4 7 1 210 6 38 Move 7638 | 50 158 193 396 203 24 567 186 752 406 501 128 398 436 310 365 202 325 392 859 335 452 Hop 4 | . . . . . . . . . . . . . . . 4 . . . . . . Pick Up 84 | 1 5 . 17 4 . 9 1 12 1 4 1 3 2 3 4 . . 1 5 2 9 Fast Attach 66 | 6 2 . 2 1 . 1 2 5 5 1 1 2 . 2 4 2 1 . 18 2 9 Attach 51 | . . . 2 4 1 2 1 3 5 1 1 1 3 8 3 . 1 1 5 1 8 Detach 12 | . . . 1 . . . . . . . . . . 4 . 1 . 1 2 . 3 Swap 54 | . 1 1 6 2 3 5 3 8 4 3 2 2 4 1 1 . 1 . 3 2 2 Drop 85 | . 1 . 6 . . 7 . 16 7 1 3 4 2 3 3 2 . 3 21 2 4 Fire 395 | . 8 . 44 20 . 54 4 60 10 23 5 43 16 5 . . 5 7 1 6 84 Melee 5 | . . . . . . . . . . . . . . . . . . . . 4 1 Ram 1 | . . . . . . . . . . . . . . 1 . . . . . . . Kick . | . . . . . . . . . . . . . . . . . . . . . . Crush . | . . . . . . . . . . . . . . . . . . . . . . Escape Stasis 110 | . . . . . . 38 . 64 . 8 . . . . . . . . . . . Rewire 179 | . . . . . . 37 . 9 . 97 . . . . . . . . 36 . . Trap . | . . . . . . . . . . . . . . . . . . . . . . Miscellaneous . | . . . . . . . . . . . . . . . . . . . . . . Route ------- -11/Junkyard -10/Materials -10/Mines -9/Materials (discovered 2 exits: *Min x2) -9/Mines (discovered 3 exits: *Mat x2 / [*Zio]) -8/Materials (discovered 2 exits: Fac / Gar) -8/Garrison (discovered 2 exits: *Fac x2) -7/Factory -7/Garrison (discovered 3 exits: *Fac x3) -6/Factory (discovered 4 exits: Low x2 / *Ext x2) -6/Extension (discovered 2 exits: *Fac / *Cet) -6/Cetus -6/Archives (discovered 3 exits: *Fac / *Hub x2) -6/Hub_04(d) (discovered 4 exits: *Fac x4) -5/Factory -5/Waste -5/Factory -5/Upper Caves -5/Upper Caves -5/Warlord -4/Proximity Caves -4/Factory (discovered 2 exits: Res x2) History --------- Turn | Location | Event 3 | -11/Junkyard | Discovered new exit (range 15) 87 | -11/Junkyard | Entered Materials 310 | -10/Materials | Discovered new exit (range 16) 313 | -10/Materials | Build established: Mutant 387 | -10/Materials | Entered Mines 404 | -10/Mines | Met a Derelict bent on vengeance 698 | -10/Mines | Discovered new exit (range 12) 701 | -10/Mines | Learned location of Zion (-7) 722 | -10/Mines | Entered Materials 722 | -9/Materials | Evolved 2 slots: Utility x2 895 | -9/Materials | Discovered new exit (range 8) 1352 | -9/Materials | Build established: Scavenger-Mutant 1663 | -9/Materials | Discovered new exit (range 11) 1702 | -9/Materials | Entered Mines 1814 | -9/Mines | Learned location of 1 exit from Materials 1982 | -9/Mines | Discovered new exit (range 12) 2016 | -9/Mines | Met a Derelict shopkeep closing up shop 2098 | -9/Mines | Build established: Mutant 2114 | -9/Mines | Discovered new exit (range 6) 2119 | -9/Mines | A Derelict revealed a hidden shortcut to a safe place 2224 | -9/Mines | Entered Materials 2224 | -8/Materials | Evolved 2 slots: Utility x1, Weapon x1 2225 | -8/Materials | Identified exit to Factory 2280 | -8/Materials | Identified exit to Garrison 2280 | -8/Materials | Entered Garrison 2315 | -8/Garrison | Triggered checkpoint 2380 | -8/Garrison | Triggered checkpoint 2465 | -8/Garrison | Garrison Relay disabled 2606 | -8/Garrison | Triggered checkpoint 2645 | -8/Garrison | Garrison Relay disabled 2940 | -8/Garrison | Build established: Gunner 3026 | -8/Garrison | Triggered checkpoint 3142 | -8/Garrison | Triggered checkpoint 3259 | -8/Garrison | Garrison Relay disabled 3292 | -8/Garrison | Discovered exit to Factory (range 14) 3370 | -8/Garrison | Triggered checkpoint 3489 | -8/Garrison | Garrison Relay disabled 3500 | -8/Garrison | Discovered exit to Factory (range 10) 3512 | -8/Garrison | Garrison Relay disabled 3520 | -8/Garrison | Triggered checkpoint 3631 | -8/Garrison | Entered Factory 3631 | -7/Factory | Evolved 2 slots: Power x1, Utility x1 3824 | -7/Factory | Repaired Adv. Beam Cannon 3945 | -7/Factory | Identified exit to Garrison 3945 | -7/Factory | Entered Garrison 4114 | -7/Garrison | Triggered checkpoint 4158 | -7/Garrison | Garrison Relay disabled 4532 | -7/Garrison | Triggered checkpoint 4650 | -7/Garrison | Garrison Relay disabled 4762 | -7/Garrison | Discovered new exit (range 15) 4865 | -7/Garrison | Found embedded Infiltrators 4888 | -7/Garrison | Build established: Mutant 5144 | -7/Garrison | Triggered checkpoint 5222 | -7/Garrison | Triggered checkpoint 5292 | -7/Garrison | Garrison Relay disabled 5365 | -7/Garrison | Discovered new exit (range 3) 5390 | -7/Garrison | Attempted to access garrison exit controls, blocked by remote lockdown 5480 | -7/Garrison | Triggered checkpoint 5535 | -7/Garrison | Build established: Scavenger-Mutant 5686 | -7/Garrison | Triggered checkpoint 5736 | -7/Garrison | Garrison Relay disabled 5924 | -7/Garrison | Discovered new exit (range 14) 5927 | -7/Garrison | Build established: Scavenger-Gunner 5957 | -7/Garrison | Entered Factory 5957 | -6/Factory | Accompanied by 3 allies 5957 | -6/Factory | Evolved 2 slots: Utility x1, Weapon x1 6247 | -6/Factory | Fabricated M-13 Machinist? 6307 | -6/Factory | First assault squad dispatched 6335 | -6/Factory | Fabricated M-13 Machinist? 6559 | -6/Factory | Identified exit to Lower Caves 6559 | -6/Factory | Identified exit to Extension 6725 | -6/Factory | Entered Extension 6821 | -6/Extension | Build established: Gunner 6841 | -6/Extension | Rescued A7 7132 | -6/Extension | Rescued a captive Derelict 7227 | -6/Extension | Spotted B-75 Beast 7241 | -6/Extension | Spotted B-75 Beast 7248 | -6/Extension | Destroyed B-75 Beast 7269 | -6/Extension | Allies destroyed B-75 Beast 7499 | -6/Extension | Rescued a captive Derelict 7731 | -6/Extension | Rescued a captive Derelict 7763 | -6/Extension | Build established: Commander-Gunner 7772 | -6/Extension | Discovered new exit (range 10) 7774 | -6/Extension | Discovered new exit (range 6) 7819 | -6/Extension | Entered Cetus 7819 | -6/Cetus | Accompanied by 11 allies (A7) 7824 | -6/Cetus | Acquired a Cetus Manufacturing Module code from A7 7841 | -6/Cetus | Spotted Cetus Guard 7841 | -6/Cetus | Spotted Cetus Guard 7850 | -6/Cetus | Spotted Cetus Guard 7852 | -6/Cetus | Extracted ID and sensor layout for unrecognized location from A7's data core 7853 | -6/Cetus | Spotted Cetus Guard 7858 | -6/Cetus | Allies destroyed Cetus Guard 7860 | -6/Cetus | Allies destroyed Cetus Guard 7864 | -6/Cetus | Allies destroyed Cetus Guard 7872 | -6/Cetus | Allies destroyed Cetus Guard 7969 | -6/Cetus | Started Cetus Manufacturing Module 7990 | -6/Cetus | Discovered new exit (range 16) 7994 | -6/Cetus | Manufactured an Enhanced Grunt 8019 | -6/Cetus | Manufactured an Enhanced Grunt 8044 | -6/Cetus | Manufactured an Enhanced Grunt 8069 | -6/Cetus | Manufactured an Enhanced Grunt 8094 | -6/Cetus | Manufactured an Enhanced Grunt 8146 | -6/Cetus | Entered Archives 8146 | -6/Archives | Accompanied by 4 allies 8160 | -6/Archives | Build established: Scavenger-Gunner 8216 | -6/Archives | Discovered new exit (range 16) 8256 | -6/Archives | Discovered new exit (range 15) 8373 | -6/Archives | Discovered new exit (range 15) 8599 | -6/Archives | Build established: Scavenger-Mutant 11223 | -6/Archives | Entered Hub_04(d) 11223 | -6/Hub_04(d) | Accompanied by 4 allies 11428 | -6/Hub_04(d) | Discovered new exit (range 2) 11438 | -6/Hub_04(d) | Build established: Scavenger-Gunner 11661 | -6/Hub_04(d) | Identified exit to Factory 12005 | -6/Hub_04(d) | Network Hub disabled 12048 | -6/Hub_04(d) | Spotted Lightning 12051 | -6/Hub_04(d) | Spotted Lightning 12052 | -6/Hub_04(d) | Spotted Lightning 12076 | -6/Hub_04(d) | Entered Factory 12076 | -5/Factory | Evolved 2 slots: Utility x2 12102 | -5/Factory | Lost 9 parts (2p1n2u4w) 12326 | -5/Factory | Repaired Broken Centrium Wheel 12367 | -5/Factory | Build established: Hacker-Mutant 12471 | -5/Factory | System corruption reached 10% 12521 | -5/Factory | Sucked down chute 12521 | -5/Factory | Entered Waste 12528 | -5/Waste | Found Fusion Bomb Launcher 12543 | -5/Waste | Lost 9 parts (1p1n7u) 12548 | -5/Waste | Spotted C-40 Crusher 12563 | -5/Waste | Spotted C-40 Crusher 12564 | -5/Waste | Spotted C-40 Crusher 12576 | -5/Waste | Spotted C-40 Crusher 12631 | -5/Waste | Spotted C-40 Crusher 12633 | -5/Waste | Spotted C-40 Crusher 12636 | -5/Waste | Crushed by Compactor (1 part destroyed, 2 dropped) 12641 | -5/Waste | Crushed by Compactor (1 part destroyed, 2 dropped) 12642 | -5/Waste | Core integrity fell below 50% 12647 | -5/Waste | Discovered new exit (range 11) 12652 | -5/Waste | Warlord forces began an assault 12675 | -5/Waste | Allies destroyed C-40 Crusher 12679 | -5/Waste | Allies destroyed C-40 Crusher 12700 | -5/Waste | Found Damper Plating 12707 | -5/Waste | Allies destroyed C-40 Crusher 12804 | -5/Waste | Entered Factory 12804 | -5/Factory | Accompanied by 10 allies 12806 | -5/Factory | Build established: Mutant 13017 | -5/Factory | Discovered new exit (range 6) 13022 | -5/Factory | Entered Upper Caves 13028 | -5/Upper Caves | Met a Warlord Commander 13029 | -5/Upper Caves | Learned location of Warlord (-5) 13030 | -5/Upper Caves | Found Encrypted Comm Array 13074 | -5/Upper Caves | Learned location of 1 exit from Factory 13134 | -5/Upper Caves | Encountered a Warlord checkpoint 13134 | -5/Upper Caves | Identified exit to Upper Caves 13285 | -5/Upper Caves | Entered another Upper Caves area 13288 | -5/Upper Caves | Learned 8 Factory zone layouts 13476 | -5/Upper Caves | Destroyed 9 combat bots 13478 | -5/Upper Caves | Lost 5 parts (1p1n3u) 13598 | -5/Upper Caves | Discovered new exit (range 14) 13607 | -5/Upper Caves | Entered Warlord 13628 | -5/Warlord | System corruption cleaned by Quarantine Array 13934 | -5/Warlord | Met Warlord 13942 | -5/Warlord | Warlord's base attacked by MAIN.C 14023 | -5/Warlord | Found Prototype Energy Gun 14023 | -5/Warlord | Identified Vortex Shotgun 14027 | -5/Warlord | Found Prototype Launcher 14027 | -5/Warlord | Identified Vortex Catalyst Activator 14031 | -5/Warlord | Found Vortex Shotgun 14097 | -5/Warlord | Build established: Commander-Mutant 14249 | -5/Warlord | Found Prototype Device 14249 | -5/Warlord | Identified Thermal Barrier 14252 | -5/Warlord | Found Prototype Processor 14252 | -5/Warlord | Identified Exp. Target Analyzer 14268 | -5/Warlord | Found Prototype Hackware 14268 | -5/Warlord | Identified System Mapper 14292 | -5/Warlord | Warlord forces counterattacked 14307 | -5/Warlord | Found Prototype Device 14307 | -5/Warlord | Identified Exp. Cloaking Device 14316 | -5/Warlord | Found Prototype Reactor 14435 | -5/Warlord | Spotted Striker 14530 | -5/Warlord | Spotted Executioner 14611 | -5/Warlord | Identified Vortex Chain Reactor 14617 | -5/Warlord | Warlord base infiltrated, sounded retreat 14667 | -5/Warlord | Found Prototype Device 14667 | -5/Warlord | Identified Exp. Shock Absorption System 14741 | -5/Warlord | Discovered new exit (range 14) 14752 | -5/Warlord | Entered Proximity Caves 14778 | -4/Proximity Caves | Build established: Hacker-Mutant 15035 | -4/Proximity Caves | Spotted B-86 Titan 15327 | -4/Proximity Caves | Discovered new exit (range 15) 15358 | -4/Proximity Caves | Entered Factory 15358 | -4/Factory | Evolved 2 slots: Utility x2 15359 | -4/Factory | Identified exit to Research 15783 | -4/Factory | Garrison activated, responded to threat 16103 | -4/Factory | Lost 3 parts (1u2w) 16269 | -4/Factory | Garrison activated, responded to threat 16358 | -4/Factory | First assault squad dispatched 16405 | -4/Factory | Self-destructed Last Messages --------------- 16358_ ALERT: Significant disruption in Zone 9G, assault force dispatched. 16359_ G-67 Veteran Flexi-carbon Leg blasted off. 16359_ G-67 Veteran knocked back. 16360_ Critical hit (Burn: +50). 16384_ G-73 Enforcer knocked back. 16385_ Com. Wheel destroyed. 16387_ G-73 Enforcer knocked back. 16393_ Com. Wheel destroyed. 16394_ C-30 ARC bursts open, deploying its payload. 16394_ G-73 Enforcer unfolds itself. 16394_ L-61 Swordsman unfolds itself. 16394_ G-67 Veteran unfolds itself. 16394_ M-36 Artificer unfolds itself. 16398_ M-36 Artificer repairs G-67 Veteran. 16400_ G-73 Enforcer knocked back. 16400_ G-73 Enforcer destroyed. 16400_ M-36 Artificer fits Backup Propulsion VII on G-67 Veteran. 16405_ Vortex Chain Reactor destroyed. 16405_ Com. Wheel destroyed. 16405_ Adv. Power Amplifier destroyed. Map ----- +----------------------------------------------------+ | !% [ # #??###### | | #######+#### ### # "# * # #??# | | ### # * # ! #??# | | " + " " #??# | | "## """ """ " " """""" #??# | | ### """ """ " " """"" #??# | | #?# """ """ "" " """" #??# ! | | #?# " " ##?# ! % | | #?# # " "#?# [= | | #?# ! " """""########+ | | #?########### " /% #% % | | #???????????# " / # | | #???????????# ## # % % + | | #???????????# [ % ## # # % | | #???????????###### ##?# % # # | | ?????????????????######???#^ ^^%# # #### | | ??????????????????????????# ^^# # #### | | ??????????????????????????# # # # * | | ?????????????????????????## # # # | | ?????????????????????????## ^^^# # # | | ?????????????????########## # # + | | ?????????????????# # % # # # | | ?????????????????# """" # ;##"""""# # | | ?????????????????# """" #%% ;######## ##+# | | ###??????????????# """" ; % | | #??????????????# """" @l | | #??????????????# """" ; ggm | | #??????????????# """" # % b g | | #??????????????# """" # w | | #??????????????# #######;#u############## | | #??????????????########### %%%% #????????? | | #????????????????????????# = "#???????? | | #????????????????????????# % % ##????#### | | #????????????????????????# " * #?????# | | #????????????????????????# " % #?????# | | #????????????????????????# #?????# | | #????????????????????????# ![ #?????# | | #????????????????????????# " [ #?????# | | +#########?????????????????# ####### | | #?????????????????# + / | | #?????????????????# ####### | | #?????????????????# #?????# | | #?????????????????#######"#"####?????# | | #????????????????????????#?#?????????# | | ??????????????????????????????????????????????# | | ????????????????????????????????????????#########+ | | ??????????????????????????????????????### | | ??????????????????????????????????????# " % | | ??????????????????????????????????????##" % | | ??????????????????????????????????????# " %%%!== | +----------------------------------------------------+ Best States ------------- Heat Dissipation 91 Coolant Potential 200 Energy Generation 70 Energy Capacity 700 Matter Stores 300 Matter Capacity 300 Sight Range 16 Robot Scan Range 16 Terrain Scan Density 10 Cloak Strength 4 Power Amplification 30 Armor Coverage 225 Resistance: TH 50 Evasion (%) 57 Targeting Accuracy 8 Launcher Accuracy 20 Target Analysis 10 Core Analysis 6 Armor Integrity Analysis 30 Recoil Reduction 2 Offensive Hacking 54 Authchip Count 7 Item Schematics ----------------- Centrium Wheel | -5/Factory | Scanalyzed Robot Schematics ------------------ M-13 Machinist | -9/Materials | Hacked Fabricated ------------ M-13 Machinist | x1 | -6/Factory | Authchip M-13 Machinist | x1 | -6/Factory | Authchip Alien Tech Used ----------------- None Achievements -------------- None Challenges ------------ None Game ------ Seed ZhirovPowerSegregator Manual? 0 Play Time 01:41:51 Cumulative 499.2 hours Start 2023.05.20 @ 15:15:47 End 2023.05.20 @ 17:02:08 Sessions 3 Manual Loads 0 Difficulty Rogue Special Mode None Game No. 531 Rogue 522 Adventurer 8 Explorer 1 Win Type - Total 9 Types 5/1/3/0/0/0/0/0/0 Lore% 82 Gallery% 91 Achievement% 71 Wizard Run 0 Options --------- ASCII 0 Keyboard 0 Movement Numpad Keybinds 1 Fullscreen 2 Font 18/Terminus Map View 76x50 Tactical HUD 1 Map Filters NONE Filters NONE Steam 1 RUN: 57c0e1d4-0b25-4446-b639-dbefa59e02f4